[Event "FIDE WCCC U10 2018"]
[Site "Santiago de Compostela"]
[Date "2018.11.04"]
[Round "1"]
[White "Kuhn, Clement"]
[Black "Navarro Martinez, Victor"]
[Result "1-0"]
[ECO "B23"]
[WhiteElo "2087"]
[BlackElo "1539"]
[Annotator "NA RC"]
[PlyCount "71"]
[EventDate "2018.11.04"]
[EventType "swiss"]
[EventCountry "ESP"]
[SourceTitle "playchess.com"]
[Source "ChessBase"]
[SourceQuality "1"]
[TimeControl "40/5400+30:1800+30"]

{[%evp 9,70,-5,32767,32767,-3,32767,1,4,32767,20,67,40,61,44,72,59,32767,32767,32767,32767,32767,32767,32767,19,85,53,57,28,127,36,33,32767,61,32767,32767,0,32767,57,32767,32767,75,0,0,0,44,0,0,0,0,32767,0,0,0,0,280,280,934,420,29993,29994,32767,29998,29998]} 1. e4 {[%emt 0:00:00]} c5 {[%emt 0:00:00]} 2. Nc3 {[%emt 0:00:03]} Nc6 {[%emt 0:00:19]} 3. f4 {[%emt 0:00:26]} g6 {[%emt 0:00:24]} 4. Nf3 {[%emt 0:00:25]} Bg7 {[%emt 0:00:46]} 5. Bb5 {[%emt 0:00:35]} Nd4 {[%emt 0:01:08]} 6. O-O {[%emt 0:00:27]} Nxb5 {[%emt 0:01:37]} 7. Nxb5 {[%emt 0:02:14]} d5 {[%emt 0:00:32]} 8. e5 {[%emt 0:00:53]} a6 {[%emt 0:05:48]} 9. Nc3 {[%emt 0:00:19] LiveBook: 31 Games} Bf5 {[%emt 0:03:46] B23: Sizilianisch (Geschlossenes System)} ({Black should play} 9... Nh6 $11) (9... e6 10. d4 cxd4 11. Ne2 Ne7 12. Nexd4 O-O 13. Be3 f6 14. Qd2 Qc7 15. Rae1 fxe5 16. Nxe5 Nf5 17. Nxf5 Rxf5 {1-0 (27) Slipak,S (2456)-Quintiliano Pinto,R (2443) Buenos Aires 2016}) 10. d4 {[%emt 0:02:06]} c4 $146 {[%emt 0:08:32]} ({Vorgänger:} 10... b6 11. dxc5 bxc5 12. Qxd5 Bxc2 13. Qc6+ Kf8 14. Qxc5 Nh6 15. Rf2 Bf5 16. Be3 {½-½ (46) Zeidler,S (2233)-Eckersley Waites,T (2139) West Bromwich 2004}) 11. Qe2 {[%emt 0:07:02]} Qa5 {[%emt 0:09:29]} 12. h3 {[%emt 0:05:05]} h5 {[%emt 0:04:03]} 13. Ng5 {[%emt 0:03:31]} Nh6 {[%emt 0:04:50]} 14. Be3 {[%emt 0:07:22]} O-O {[%emt 0:04:29]} 15. Rad1 {[%emt 0:06:41]} f6 {[%emt 0:02:47]} 16. Nf3 {[%emt 0:01:55]} Nf7 {[%emt 0:00:30]} (16... Qd8 $11 {remains equal.}) 17. Bf2 {[%emt 0:05:39]} Rad8 {[%emt 0:06:32]} 18. Be1 {[%emt 0:02:18]} Rfe8 {[%emt 0:06:34]} ({Black should play} 18... Nh6 $14) 19. a3 {[%emt 0:09:16]} (19. Nh4 $5 {[%cal Rh4f5]}) 19... Qb6 {[%emt 0:02:37]} 20. Rf2 {[%emt 0:15:05]} Qxb2 {[%emt 0:07:06]} 21. Rb1 {[%emt 0:00:46]} Qxa3 {[%emt 0:00:41]} 22. Rxb7 {[%emt 0:00:29]} e6 {[%emt 0:01:59]} 23. Nh4 $1 {[%emt 0:04:35]} Nh6 {[%emt 0:01:13]} 24. Kh2 {[%emt 0:01:18]} Rb8 {[%emt 0:02:35]} (24... fxe5 $11 25. fxe5 Rb8) 25. Rxb8 {[%emt 0:01:19]} Rxb8 {[%emt 0:00:10]} 26. exf6 {[%emt 0:00:16]} Bxf6 {[%emt 0:01:06]} 27. Nxf5 {[%emt 0:00:23]} Nxf5 {[%emt 0:00:40]} 28. Qxe6+ {[%emt 0:00:27]} Kg7 {[%emt 0:00:28]} 29. Nxd5 {[%emt 0:01:22]} Qg3+ $1 {[%emt 0:02:16]} 30. Kh1 {[%emt 0:01:39]} Bxd4 {[%emt 0:00:39]} 31. Rf1 {[%emt 0:02:35]} Qa3 $2 {[%emt 0:01:07]} (31... Rb1 $1 $11 {und Schwarz ist OK.}) 32. c3 {[%emt 0:01:45]} Bc5 $2 {[%emt 0:02:17]} (32... Rd8) 33. Qf6+ {[%emt 0:01:02]} (33. Qe5+ $142 Kg8 34. Qxb8+ Bf8 35. Bf2) 33... Kh7 $2 {[%emt 0:01:36]} (33... Kh6 $18 34. g4 hxg4) 34. Qf7+ {[%emt 0:00:40]} Ng7 {[%emt 0:00:51]} 35. Nf6+ {[%emt 0:00:34]} Kh6 {[%emt 0:00:18]} 36. Bh4 {[%emt 0:00:27]} 1-0

[Event "FIDE WCCC U10 2018"]
[Site "Santiago de Compostela"]
[Date "2018.11.04"]
[Round "1"]
[White "Materia, Marco"]
[Black "Razhbadinov, Rasul"]
[Result "1-0"]
[ECO "C47"]
[WhiteElo "2035"]
[BlackElo "1529"]
[Annotator "NA"]
[PlyCount "39"]
[EventDate "2018.11.04"]
[EventType "swiss"]
[EventCountry "ESP"]
[SourceTitle "playchess.com"]
[Source "ChessBase"]
[SourceQuality "1"]
[TimeControl "40/5400+30:1800+30"]

{[%evp 8,37,-7,32767,32767,-4,32767,32767,32767,32767,42,42,54,32767,32767,32767,87,32767,32767,32767,32767,99,120,123,137,51,250,32767,32767,32767,288,273]} 1. e4 {[%emt 0:00:00]} e5 {[%emt 0:00:00]} 2. Nf3 {[%emt 0:00:00]} Nc6 {[%emt 0:00:11]} 3. Nc3 {[%emt 0:00:04]} Nf6 {[%emt 0:00:19]} 4. d4 {[%emt 0:00:13]} exd4 {[%emt 0:01:21]} 5. Nxd4 {[%emt 0:00:12]} Bb4 {[%emt 0:02:15]} 6. Nxc6 {[%emt 0:00:29]} dxc6 {[%emt 0:01:45]} 7. Qxd8+ {[%emt 0:01:30]} Kxd8 {[%emt 0:00:09]} 8. Bg5 {[%emt 0:03:14] C47: Scotch Four Knights and Four Knights with 4 g3} (8. f3 Be6 9. Bd2 Nd7 10. a3 Bd6 11. O-O-O f6 12. Be3 Ke7 13. Be2 g5 14. Kb1 h5 15. g3 Ne5 {0-1 (54) Smirnov,A (2549)-Lenderman,A (2630) chess.com INT 2018}) 8... Re8 {[%emt 0:08:24]} (8... Bxc3+ $11 9. bxc3 h6 10. O-O-O+ Ke7) 9. O-O-O+ {[%emt 0:03:04]} Bd7 {[%emt 0:07:13]} 10. f3 {[%emt 0:08:57]} h6 $146 {[%emt 0:02:48]} ({Predecessor:} 10... b5 11. g3 h6 12. Bxf6+ gxf6 13. Bh3 Bd6 14. Bxd7 Kxd7 15. Rhe1 Re7 {1-0 (48) Werthmann,N (1706)-Zur Nieden,P (1335) Berlin 2012}) 11. Bh4 {[%emt 0:04:40]} g5 {[%emt 0:06:54]} 12. Bf2 {[%emt 0:01:58]} Bd6 {[%emt 0:10:28]} 13. h4 {[%emt 0:08:25]} g4 {[%emt 0:08:59]} 14. Bc4 {[%emt 0:06:08]} Ke7 {[%emt 0:15:50]} 15. Be3 {[%emt 0:07:22]} b5 {[%emt 0:09:46]} 16. Be2 {[%emt 0:02:18]} ({White should try} 16. Bb3 $16) 16... h5 $2 {[%emt 0:01:46]} ({Black should try} 16... Nh5 $14) 17. Bg5 {[%emt 0:02:10]} b4 {[%emt 0:02:09]} 18. Nb1 {[%emt 0:02:00]} Rg8 {[%emt 0:10:10]} 19. Nd2 $18 {[%emt 0:03:43]} gxf3 {[%emt 0:12:21]} 20. gxf3 {[%emt 0:01:11]} 1-0

[Event "FIDE WCCC U10 2018"]
[Site "Santiago de Compostela"]
[Date "2018.11.04"]
[Round "1"]
[White "Xue, Haowen"]
[Black "Xie, Felix"]
[Result "1-0"]
[ECO "E62"]
[WhiteElo "2025"]
[BlackElo "1514"]
[Annotator "NA"]
[PlyCount "71"]
[EventDate "2018.11.04"]
[EventType "swiss"]
[EventCountry "ESP"]
[SourceTitle "playchess.com"]
[Source "ChessBase"]
[SourceQuality "1"]
[TimeControl "40/5400+30:1800+30"]

{[%evp 14,70,45,26,32767,32767,29,32767,32767,32767,32767,32767,32767,32767,32767,32767,32767,32767,32767,33,32767,32767,32767,32767,32767,32767,67,68,62,31,82,75,88,84,32767,111,561,572,597,565,641,667,1122,1237,1121,978,1080,911,758,984,32767,32767,32767,32767,32767,802,737,32767,29999]} 1. d4 {[%emt 0:00:00]} Nf6 {[%emt 0:00:00]} 2. c4 {[%emt 0:00:00]} g6 {[%emt 0:00:00]} 3. g3 {[%emt 0:00:00]} Bg7 {[%emt 0:00:13]} 4. Bg2 {[%emt 0:00:00]} O-O {[%emt 0:00:05]} 5. Nc3 {[%emt 0:00:10]} d6 {[%emt 0:00:35]} 6. Nf3 {[%emt 0:00:09]} Nc6 {[%emt 0:01:10]} 7. O-O {[%emt 0:02:40]} Bf5 {[%emt 0:01:14]} 8. d5 {[%emt 0:06:50]} Na5 {[%emt 0:02:45]} 9. Nd2 {[%emt 0:01:34]} c5 {[%emt 0:03:05] LiveBook: 139 Games E62: King's Indian: Fianchetto: 6...c6 and Panno Variation (6...Nc6) without ...a6} (9... c6 10. e4 Bg4 11. Qa4 cxd5 12. cxd5 Bd7 13. Qa3 Ng4 14. b4 Rc8 15. Bb2 Nc4 16. Nxc4 Rxc4 17. Qb3 Qc7 18. Rfc1 Nxf2 19. Kxf2 Qb6+ {0-1 (19) Karpov,A (2628)-Fressinet,L (2702) Cap d'Agde 2015 CBM 169 Extra [Schulz,André]}) 10. a3 {[%emt 0:03:35]} b6 {[%emt 0:06:33]} 11. b4 {[%emt 0:00:54]} Nb7 {[%emt 0:00:23]} 12. Bb2 {[%emt 0:01:00]} Qd7 {[%emt 0:02:19]} 13. e4 $146 {[%emt 0:02:34]} ({Predecessor:} 13. Re1 Bh3 14. Bh1 Rfe8 15. Qb3 Qf5 16. e4 Qh5 17. Ne2 {0-1 (31) Christiansen,J (2354)-Felgaer,R (2575) Caleta 2015}) 13... Bh3 {[%emt 0:01:14]} 14. Qe2 {[%emt 0:01:04]} Bxg2 {[%emt 0:01:18]} 15. Kxg2 {[%emt 0:02:10]} Rfe8 {[%emt 0:07:23]} 16. Qd3 {[%emt 0:02:55]} Ng4 {[%emt 0:08:05]} 17. f4 {[%emt 0:01:17]} e5 {[%emt 0:08:43]} 18. f5 {[%emt 0:03:09]} Bh6 {[%emt 0:02:11]} 19. Rae1 {[%emt 0:01:22]} Qe7 {[%emt 0:03:32]} 20. h3 {[%emt 0:04:00]} Nf6 {[%emt 0:00:11]} 21. Rf3 {[%emt 0:03:47]} Bg7 {[%emt 0:02:48]} (21... cxb4 $11 22. axb4 a5) 22. Ref1 {[%emt 0:02:30]} Rf8 {[%emt 0:04:51]} 23. Nb3 {[%emt 0:01:09]} Nd7 {[%emt 0:01:20]} 24. Bc1 {[%emt 0:04:23]} g5 $2 {[%emt 0:04:26] [#]} (24... cxb4 $16 {is tougher.} 25. axb4 a5) 25. f6 $1 {[%emt 0:02:49]} Bxf6 {[%emt 0:02:27] [#]} 26. Rxf6 $1 {[%emt 0:00:17]} Nxf6 {[%emt 0:00:06]} 27. Bxg5 {[%emt 0:00:04]} Rfe8 {[%emt 0:01:50]} 28. Bxf6 {[%emt 0:00:15]} Qf8 {[%emt 0:00:34]} 29. Nb5 {[%emt 0:01:18]} Rec8 {[%emt 0:00:42]} 30. Qf3 {[%emt 0:00:42]} Qh6 {[%emt 0:00:27]} 31. bxc5 {[%emt 0:04:49]} bxc5 {[%emt 0:01:16]} 32. h4 {[%emt 0:05:19]} a6 {[%emt 0:00:44]} 33. Nc3 {[%emt 0:01:55]} Rab8 {[%emt 0:01:40]} 34. Qg4+ {[%emt 0:01:42]} Qg6 {[%emt 0:00:12]} 35. Qd7 {[%emt 0:00:53]} Nd8 {[%emt 0:01:38]} 36. Qe8# 1-0

[Event "FIDE WCCC U10 2018"]
[Site "Santiago de Compostela"]
[Date "2018.11.04"]
[Round "1"]
[White "Mardov, Dimitar"]
[Black "Venkatesan, Kavin"]
[Result "1-0"]
[ECO "B90"]
[WhiteElo "1985"]
[BlackElo "1507"]
[Annotator "NA RC"]
[PlyCount "77"]
[EventDate "2018.11.04"]
[EventType "swiss"]
[EventCountry "ESP"]
[SourceTitle "playchess.com"]
[Source "ChessBase"]
[SourceQuality "1"]
[TimeControl "40/5400+30:1800+30"]

1. e4 {[%emt 0:00:00]} c5 {[%emt 0:00:00]} 2. Nf3 {[%emt 0:00:00]} d6 {[%emt 0:00:05]} 3. d4 {[%emt 0:00:00]} cxd4 {[%emt 0:00:11]} 4. Nxd4 {[%emt 0:00:02]} Nf6 {[%emt 0:00:16]} 5. Nc3 {[%emt 0:00:20]} a6 {[%emt 0:00:14]} 6. h3 {[%emt 0:00:09]} e5 {[%emt 0:00:52] LiveBook: 1250 Games} 7. Nb3 {[%emt 0:00:09]} b5 {[%emt 0:03:38] B90: Sicilian Najdorf: Unusual White 6th moves, 6 Be3 Ng4 and 6 Be3 e5} 8. a4 $146 {[%emt 0:10:38]} ({Predecessor:} 8. g4 Bb7 9. Bg2 b4 10. Nd5 Nxd5 11. exd5 a5 12. a3 Nd7 13. axb4 axb4 14. Bd2 h5 15. Bxb4 Rxa1 16. Qxa1 hxg4 {1-0 (44) Ter Sahakyan,S (2580)-Gabuzyan,H (2560) Yerevan 2015}) 8... bxa4 {[%emt 0:09:33]} 9. Rxa4 {[%emt 0:01:16]} Be7 {[%emt 0:06:41]} 10. Bd3 {[%emt 0:02:43]} Bd7 {[%emt 0:04:44]} 11. Ra1 {[%emt 0:01:12]} O-O {[%emt 0:01:42]} 12. O-O {[%emt 0:01:19]} a5 {[%emt 0:02:18]} 13. Be3 {[%emt 0:05:03]} Nc6 {[%emt 0:03:48]} 14. Na4 {[%emt 0:04:22]} Rb8 {[%emt 0:03:22]} 15. c3 {[%emt 0:03:38]} Be6 {[%emt 0:01:59]} 16. Nd2 {[%emt 0:02:38]} d5 {[%emt 0:06:33]} 17. exd5 {[%emt 0:03:18]} Bxd5 {[%emt 0:02:44]} 18. Qe2 {[%emt 0:02:12]} e4 {[%emt 0:05:51]} 19. Bc2 {[%emt 0:02:35]} (19. Bb1 $16) 19... Re8 {[%emt 0:04:06]} 20. Rfd1 {[%emt 0:01:46]} Qc7 {[%emt 0:02:49]} 21. Rac1 {[%emt 0:04:57]} Ne5 {[%emt 0:09:03]} 22. Bd4 {[%emt 0:03:30]} Bd6 {[%emt 0:01:02]} (22... Ng6 $15) 23. b3 {[%emt 0:03:34]} (23. Bxe4 $2 Nxe4 24. Nxe4 Qc6 $17) (23. c4 $1 $14 Bxc4 24. Nxc4 Qxc4 25. Qxc4 Nxc4 26. Bxe4 Nxe4 27. Rxc4) 23... Ned7 {[%emt 0:03:51]} 24. c4 {[%emt 0:01:40]} Bc6 {[%emt 0:00:28]} 25. Nc3 {[%emt 0:02:18]} Bc5 {[%emt 0:02:26]} 26. Bxc5 {[%emt 0:02:00]} Nxc5 {[%emt 0:00:11]} 27. Qe3 {[%emt 0:00:45]} Qe7 {[%emt 0:01:52]} 28. Ra1 {[%emt 0:01:13]} Nb7 {[%emt 0:02:27]} 29. Ne2 {[%emt 0:01:17]} Rbd8 {[%emt 0:02:57]} 30. Nf1 {[%emt 0:02:28]} Rxd1 {[%emt 0:06:10]} 31. Rxd1 {[%emt 0:00:16]} Rd8 {[%emt 0:00:10]} (31... g6 $14) 32. Nd4 {[%emt 0:00:45]} Qc5 {[%emt 0:01:09]} ({Black should play} 32... Bd7 $14) 33. Ng3 {[%emt 0:01:38]} (33. Nxc6 $18 {is more deadly.} Qxc6 34. Rxd8+ Nxd8 35. Qa7) 33... a4 $2 {[%emt 0:02:09] [#]} (33... h6 $16 34. Bxe4 (34. Nxe4 Bxe4 35. Bxe4 Re8 $11) 34... Bxe4 35. Nxe4 Nxe4) 34. bxa4 {[%emt 0:06:55]} (34. b4 $1 $18 {[%cal Rb4c5]} Qxc4 35. Ngf5 Qxc2 36. Nxc2 Rxd1+ 37. Kh2) 34... Qxc4 {[%emt 0:01:25]} (34... h6 $16 35. Nxc6 (35. Bxe4 Nxe4 36. Nxe4 Bxe4 $11) (35. Nxe4 Bxe4 36. Bxe4 Re8 $11) 35... Rxd1+ 36. Bxd1 Qxc6) 35. Bb3 {[%emt 0:01:30]} ({Worse is} 35. Bxe4 Nxe4 36. Nxe4 Bxe4 $11) 35... Qa6 {[%emt 0:00:34]} (35... Qc5 {might work better.} 36. Ngf5 Bd7) 36. Ngf5 {[%emt 0:00:43]} Na5 $2 {[%emt 0:01:17]} (36... Bd7 $18 37. Rc1 Kh8) 37. Qg5 {[%emt 0:02:51]} Ne8 {[%emt 0:02:22]} 38. Qxd8 {[%emt 0:00:58]} Nxb3 {[%emt 0:00:26]} 39. Nxc6 {[%emt 0:00:24]} 1-0

[Event "FIDE WCCC U10 2018"]
[Site "Santiago de Compostela"]
[Date "2018.11.04"]
[Round "1"]
[White "Volkov, Maksim"]
[Black "Borowik, Wojciech"]
[Result "1-0"]
[ECO "E68"]
[WhiteElo "1971"]
[BlackElo "1500"]
[Annotator "NA RC"]
[PlyCount "119"]
[EventDate "2018.11.04"]
[EventType "swiss"]
[EventCountry "ESP"]
[SourceTitle "playchess.com"]
[Source "ChessBase"]
[SourceQuality "1"]
[TimeControl "40/5400+30:1800+30"]

{[%evp 9,118,26,41,32767,32767,32767,32767,32767,32767,32767,32767,32767,32767,32767,95,32767,32767,32767,32767,32767,32767,32767,258,217,288,258,280,32767,305,32767,417,32767,397,358,399,453,484,504,532,533,593,674,764,496,704,32767,1380,32767,32767,32767,1411,1600,32767,32767,32767,1952,32767,32767,32767,32767,32767,32767,32767,32767,29990,32767,32767,32767,1303,873,836,860,870,729,900,1066,29971,5415,29992,29989,29989,32767,32767,29982,5447,29984,12844,29987,29985,12846,29988,29988,29994,29995,29996,29995,29995,1903,29995,29995,29995,29996,29996,29996,29996,29997,29997,29998,29998,29999,29999]} 1. d4 {[%emt 0:00:00]} Nf6 {[%emt 0:00:00]} 2. c4 {[%emt 0:00:00]} g6 {[%emt 0:00:00]} 3. Nf3 {[%emt 0:00:15]} Bg7 {[%emt 0:00:09]} 4. g3 {[%emt 0:00:20]} O-O {[%emt 0:00:25]} 5. Bg2 {[%emt 0:00:38]} d6 {[%emt 0:01:14] LiveBook: 12287 Games} 6. O-O {[%emt 0:00:59]} Nbd7 {[%emt 0:09:25]} 7. Nc3 {[%emt 0:02:21]} e5 {[%emt 0:05:42]} 8. e4 {[%emt 0:02:13]} c6 {[%emt 0:08:48]} 9. b3 {[%emt 0:02:26]} Ne8 {[%emt 0:01:25] E68: King's Indian: Fianchetto: 6...Nbd7 7 0-0 e5 8 e4} (9... Qb6 10. Rb1 exd4 11. Nxd4 Nc5 12. Nde2 {½-½ (12) Nikolic,P (2584)-Markus,R (2613) Valjevo 2018}) 10. d5 {[%emt 0:02:29]} c5 {[%emt 0:01:07]} 11. Qc2 $146 {[%emt 0:07:21]} ({Predecessor:} 11. Bb2 f5 12. Ne1 f4 13. Nd3 h5 14. Bc1 Qg5 15. h4 Qe7 16. Bd2 a6 17. Rc1 b5 18. cxb5 axb5 19. Nxb5 Rxa2 {0-1 (32) Rozycki,B (1849)-Kolosowski,M (2439) Wroclaw 2012}) 11... Nb6 {[%emt 0:04:16]} 12. Ne1 {[%emt 0:05:26]} f5 {[%emt 0:02:06]} 13. Nd3 {[%emt 0:01:04]} f4 {[%emt 0:08:05]} 14. gxf4 {[%emt 0:01:25]} exf4 {[%emt 0:00:37]} 15. Bxf4 {[%emt 0:00:25]} Qf6 {[%emt 0:13:56]} (15... Nd7 {is a better defense.} 16. Qd2 Qe7) 16. Rac1 {[%emt 0:01:26]} g5 {[%emt 0:01:33]} 17. Be3 {[%emt 0:01:34]} Qg6 {[%emt 0:04:25]} 18. Qd2 {[%emt 0:03:21]} g4 {[%emt 0:04:43]} 19. e5 {[%emt 0:02:25]} Bf5 {[%emt 0:02:15]} (19... dxe5 $142 20. Nxc5 Nd6) 20. Nf4 {[%emt 0:00:19]} Qf7 {[%emt 0:01:12]} 21. exd6 {[%emt 0:01:04]} Nxd6 {[%emt 0:02:49]} 22. Bxc5 {[%emt 0:01:56]} Rad8 {[%emt 0:02:05]} 23. Bxd6 {[%emt 0:01:21]} Rxd6 {[%emt 0:01:04]} 24. c5 $1 {[%emt 0:00:07]} Rh6 {[%emt 0:02:17]} 25. cxb6 {[%emt 0:00:56]} Qf6 {[%emt 0:01:03]} 26. Qe3 {[%emt 0:00:55]} Bd7 {[%emt 0:04:28]} (26... Qxb6 $142 27. Rfd1 Qxe3 28. fxe3 Be5) 27. bxa7 {[%emt 0:01:35]} Re8 {[%emt 0:08:35]} 28. Qxe8+ {[%emt 0:02:41]} Bxe8 {[%emt 0:00:02]} 29. a8=Q {[%emt 0:00:16]} Qxf4 {[%emt 0:00:17]} 30. Qxe8+ {[%emt 0:00:06]} Bf8 {[%emt 0:00:19]} 31. Rfe1 {[%emt 0:00:35]} Qxh2+ {[%emt 0:01:06]} 32. Kf1 {[%emt 0:00:05]} Qf4 {[%emt 0:03:49]} 33. Qe4 {[%emt 0:00:48]} Qg5 {[%emt 0:00:56]} 34. Qe5 {[%emt 0:00:21]} Qd8 {[%emt 0:00:54]} 35. Ne4 {[%emt 0:00:41]} Bg7 {[%emt 0:00:22]} 36. Qc7 {[%emt 0:00:32]} Qh4 {[%emt 0:00:40]} 37. Nd6 {[%emt 0:00:26]} Rf6 {[%emt 0:00:40]} 38. Qd8+ {[%emt 0:00:29]} Bf8 {[%emt 0:00:18]} 39. Re2 {[%emt 0:00:14]} Rxf2+ {[%emt 0:00:22]} 40. Rxf2 {[%emt 0:00:00]} Qxd8 {[%emt 0:00:00]} 41. Ne4 {[%emt 0:00:59]} Be7 {[%emt 0:05:59] [#]} 42. d6 $1 {[%emt 0:00:27]} Bg5 {[%emt 0:01:52]} 43. Rc7 {[%emt 0:01:33]} Qe8 {[%emt 0:10:16]} 44. d7 {[%emt 0:00:48]} Qe5 {[%emt 0:01:40]} 45. Rc8+ {[%emt 0:00:09]} Kg7 {[%emt 0:00:06]} 46. Nxg5 {[%emt 0:09:00]} Qa1+ {[%emt 0:01:23]} 47. Ke2 {[%emt 0:00:07]} Qxa2+ {[%emt 0:02:54]} 48. Ke3 {[%emt 0:00:07]} Qxb3+ {[%emt 0:06:45]} 49. Kf4 {[%emt 0:00:23]} Qa4+ {[%emt 0:02:05]} 50. Kg3 {[%emt 0:00:41]} Qa3+ {[%emt 0:01:26]} 51. Kh4 {[%emt 0:00:18]} Qe3 {[%emt 0:02:08]} 52. Rf7+ {[%emt 0:00:05]} Kh6 {[%emt 0:00:06]} 53. Rxh7+ {[%emt 0:00:11]} (53. d8=Q $142 Qe1+ 54. Kxg4 Qe2+ 55. Bf3 Qg2+ 56. Bxg2 Kg6 57. Qf6#) 53... Kg6 {[%emt 0:00:05]} 54. Rg8+ {[%emt 0:00:17]} Kf5 {[%emt 0:00:43]} 55. Rf7+ {[%emt 0:00:11]} Ke5 {[%emt 0:00:27]} 56. Re8+ {[%emt 0:00:08]} Kd4 {[%emt 0:00:14]} 57. d8=Q+ {[%emt 0:00:10]} Kc4 {[%emt 0:00:10]} 58. Rxe3 {[%emt 0:00:11]} Kc5 {[%emt 0:00:07]} 59. Rxb7 {[%emt 0:01:00]} Kc4 {[%emt 0:00:11]} 60. Qd5# {[%emt 0:00:08]} 1-0